[Event "46th OKU-A 2019"]
[Site "Utrecht"]
[Date "2019.06.02"]
[Round "5.7"]
[White "Van Overdam, Julian"]
[Black "Floor, Dirk"]
[Result "1-0"]
[ECO "C45"]
[WhiteElo "2371"]
[BlackElo "2184"]
[Annotator "ChessBase"]
[PlyCount "131"]
[EventDate "2019.05.31"]
[EventType "swiss"]
[EventCountry "NED"]
[SourceTitle "playchess.com"]
[Source "ChessBase"]
[SourceQuality "1"]
[TimeControl "6600+10"]

1. e4 {[%emt 0:03:45]} e5 {[%emt 0:00:00]} 2. Nf3 {[%emt 0:00:16]} Nc6 {[%emt 0:00:11]} 3. d4 {[%emt 0:00:10]} exd4 {[%emt 0:00:14]} 4. Nxd4 {[%emt 0:00:06]} Nf6 {[%emt 0:00:11]} 5. Nxc6 {[%emt 0:00:10]} bxc6 {[%emt 0:00:13]} 6. e5 {[%emt 0:00:12]} Qe7 {[%emt 0:00:10]} 7. Qe2 {[%emt 0:00:08]} Nd5 {[%emt 0:00:09]} 8. c4 {[%emt 0:00:11]} Ba6 {[%emt 0:00:08]} 9. b3 {[%emt 0:00:09]} g6 {[%emt 0:00:21]} 10. g3 {[%emt 0:00:13]} Bg7 {[%emt 0:00:09]} 11. Bb2 {[%emt 0:00:07]} O-O {[%emt 0:00:15]} 12. Bg2 {[%emt 0:00:17]} Rae8 {[%emt 0:00:08]} 13. O-O {[%emt 0:00:18]} Bxe5 {[%emt 0:00:28]} 14. Qxe5 {[%emt 0:00:09]} Qxe5 {[%emt 0:00:09]} 15. Bxe5 {[%emt 0:00:05]} Rxe5 {[%emt 0:00:13]} 16. cxd5 {[%emt 0:00:08]} Bxf1 {[%emt 0:00:09]} 17. Kxf1 {[%emt 0:00:14]} cxd5 {[%emt 0:00:07]} 18. Nc3 {[%emt 0:00:08]} c6 {[%emt 0:00:07]} 19. Rd1 {[%emt 0:00:17]} Rfe8 {[%emt 0:07:20]} 20. Bf3 {[%emt 0:00:33]} Kf8 {[%emt 0:02:40]} 21. Ne2 {[%emt 0:00:14]} Rb8 {[%emt 0:02:06]} 22. Rd4 {[%emt 0:00:40]} a5 {[%emt 0:03:55]} 23. Ra4 {[%emt 0:01:34]} Rb5 {[%emt 0:04:01]} 24. Nf4 {[%emt 0:00:16]} Re8 {[%emt 0:04:59]} 25. Nd3 {[%emt 0:01:05]} Ke7 {[%emt 0:03:10]} 26. Ke2 {[%emt 0:00:49]} Kd6+ {[%emt 0:01:54]} 27. Kd2 {[%emt 0:00:06]} Ra8 {[%emt 0:08:13]} 28. h4 {[%emt 0:03:06]} Rbb8 {[%emt 0:03:11]} 29. h5 {[%emt 0:06:50]} h6 {[%emt 0:06:55]} 30. Rf4 {[%emt 0:08:50]} Rf8 {[%emt 0:11:23]} 31. Bd1 {[%emt 0:02:32]} Ke6 {[%emt 0:10:22]} 32. hxg6 {[%emt 0:05:45]} fxg6 {[%emt 0:01:43]} 33. Rh4 {[%emt 0:00:05]} h5 {[%emt 0:02:11]} 34. g4 {[%emt 0:01:01]} hxg4 {[%emt 0:05:18]} 35. Bxg4+ {[%emt 0:00:06]} Kd6 {[%emt 0:00:58]} 36. Rh7 {[%emt 0:01:04]} Rad8 {[%emt 0:00:52]} 37. Rh6 {[%emt 0:03:05]} Rf6 {[%emt 0:01:59]} 38. f4 {[%emt 0:00:24]} Rdf8 {[%emt 0:04:42]} 39. Rh7 {[%emt 0:05:36]} R8f7 {[%emt 0:00:52]} 40. Rh1 {[%emt 0:00:10]} Rf8 {[%emt 0:01:50]} 41. Ke3 {[%emt 0:05:42]} Re8+ {[%emt 0:02:02]} 42. Kd2 {[%emt 0:03:10]} Ref8 {[%emt 0:00:12]} 43. Kc3 {[%emt 0:05:26]} c5 {[%emt 0:02:56]} 44. Rh3 {[%emt 0:05:32]} a4 {[%emt 0:00:57]} 45. Rg3 {[%emt 0:01:12]} axb3 {[%emt 0:02:45]} 46. axb3 {[%emt 0:00:05]} Rxf4 {[%emt 0:01:52]} 47. Nxf4 {[%emt 0:00:07]} Rxf4 {[%emt 0:00:04]} 48. Be2 {[%emt 0:00:51]} Rf6 {[%emt 0:02:07]} 49. Rg5 {[%emt 0:02:08]} Kc6 {[%emt 0:00:33]} 50. Bd1 {[%emt 0:02:34]} d6 {[%emt 0:00:16]} 51. Bc2 {[%emt 0:01:45]} Rf3+ {[%emt 0:00:28]} 52. Kb2 {[%emt 0:00:30]} c4 {[%emt 0:02:04]} 53. bxc4 {[%emt 0:00:05]} Kc5 {[%emt 0:01:52]} 54. cxd5 {[%emt 0:00:09]} Rf2 {[%emt 0:01:01]} 55. Kc3 {[%emt 0:00:54]} Rf3+ {[%emt 0:00:55]} 56. Bd3 {[%emt 0:00:29]} Rh3 {[%emt 0:00:11]} 57. Kd2 {[%emt 0:00:31]} Rh5 {[%emt 0:00:27]} 58. Rxh5 {[%emt 0:00:39]} gxh5 {[%emt 0:00:24]} 59. Be4 {[%emt 0:00:04]} Kd4 {[%emt 0:00:07]} 60. Bh1 {[%emt 0:00:16]} Ke5 {[%emt 0:01:03]} 61. Ke3 {[%emt 0:00:12]} h4 {[%emt 0:00:49]} 62. Kf2 {[%emt 0:00:07]} Kf4 {[%emt 0:00:34]} 63. Kg2 {[%emt 0:00:13]} Kg4 {[%emt 0:00:12]} 64. Kh2 {[%emt 0:00:08]} h3 {[%emt 0:00:19]} 65. Be4 {[%emt 0:00:03]} Kf4 {[%emt 0:00:41]} 66. Bh7 {[%emt 0:00:11]} 1-0

[Event "46th OKU-A 2019"]
[Site "Utrecht"]
[Date "2019.06.02"]
[Round "5.8"]
[White "Tabak, Stefan"]
[Black "Haast, Mark"]
[Result "1-0"]
[ECO "B06"]
[WhiteElo "2183"]
[BlackElo "2391"]
[Annotator "ChessBase"]
[PlyCount "107"]
[EventDate "2019.05.31"]
[EventType "swiss"]
[EventCountry "NED"]
[SourceTitle "playchess.com"]
[Source "ChessBase"]
[SourceQuality "1"]
[TimeControl "6600+10"]

1. e4 {[%emt 0:00:00]} g6 {[%emt 0:18:46]} 2. d4 {[%emt 0:00:00]} Bg7 {[%emt 0:00:13]} 3. Nc3 {[%emt 0:00:09]} d6 {[%emt 0:00:19]} 4. Be3 {[%emt 0:00:19]} a6 {[%emt 0:00:11]} 5. a4 {[%emt 0:08:27]} b6 {[%emt 0:00:20]} 6. g3 {[%emt 0:01:01]} Bb7 {[%emt 0:01:43]} 7. Bg2 {[%emt 0:00:06]} Nd7 {[%emt 0:00:34]} 8. Qd2 {[%emt 0:13:33]} c5 {[%emt 0:06:41]} 9. Nge2 {[%emt 0:01:39]} cxd4 {[%emt 0:01:49]} 10. Bxd4 {[%emt 0:02:35]} Ngf6 {[%emt 0:00:25]} 11. O-O {[%emt 0:01:42]} Qc7 {[%emt 0:02:37]} 12. Nd5 {[%emt 0:01:49]} Bxd5 {[%emt 0:00:19]} 13. exd5 {[%emt 0:00:06]} O-O {[%emt 0:01:59]} 14. Rfe1 {[%emt 0:01:53]} Rfe8 {[%emt 0:21:39]} 15. b3 {[%emt 0:07:00]} h5 {[%emt 0:02:14]} 16. c4 {[%emt 0:04:46]} Nc5 {[%emt 0:03:44]} 17. Rab1 {[%emt 0:01:02]} a5 {[%emt 0:11:32]} 18. Nc3 {[%emt 0:01:51]} Qd7 {[%emt 0:00:17]} 19. h3 {[%emt 0:11:52]} Qf5 {[%emt 0:05:53]} 20. Bxc5 {[%emt 0:05:17]} bxc5 {[%emt 0:00:19]} 21. Nb5 {[%emt 0:00:14]} Rec8 {[%emt 0:07:27]} 22. Rbd1 {[%emt 0:01:04]} Bf8 {[%emt 0:00:26]} 23. Kh2 {[%emt 0:03:19]} Rcb8 {[%emt 0:04:33]} 24. Re2 {[%emt 0:05:20]} Rb7 {[%emt 0:00:08]} 25. Rde1 {[%emt 0:00:39]} Kh7 {[%emt 0:09:55]} 26. Be4 {[%emt 0:02:24]} Qd7 {[%emt 0:02:16]} 27. Kg2 {[%emt 0:00:52]} Qd8 {[%emt 0:01:47]} 28. Bc2 {[%emt 0:00:51]} Bh6 {[%emt 0:00:17]} 29. Qd1 {[%emt 0:04:10]} Kg8 {[%emt 0:00:47]} 30. Rf1 {[%emt 0:00:24]} h4 {[%emt 0:01:00]} 31. Rfe1 {[%emt 0:02:55]} Qf8 {[%emt 0:00:30]} 32. Qb1 {[%emt 0:03:06]} Kg7 {[%emt 0:00:36]} 33. Bd3 {[%emt 0:01:06]} Bg5 {[%emt 0:01:09]} 34. Qb2 {[%emt 0:03:19]} Qd8 {[%emt 0:00:59]} 35. Qc3 {[%emt 0:00:16]} Bh6 {[%emt 0:00:49]} 36. Bc2 {[%emt 0:01:18]} Kf8 {[%emt 0:00:58]} 37. Qf3 {[%emt 0:00:20]} hxg3 {[%emt 0:00:30]} 38. fxg3 {[%emt 0:00:08]} Bg7 {[%emt 0:00:03]} 39. g4 {[%emt 0:00:36]} Kg8 {[%emt 0:00:22]} 40. Rf1 {[%emt 0:00:32]} Qf8 {[%emt 0:00:15]} 41. Qe3 {[%emt 0:01:38]} Re8 {[%emt 0:00:17]} 42. Qd2 {[%emt 0:00:13]} Nd7 {[%emt 0:00:10]} 43. Bxg6 {[%emt 0:01:07]} Ne5 {[%emt 0:00:01]} 44. Bb1 {[%emt 0:00:13]} e6 {[%emt 0:00:12]} 45. Qc2 {[%emt 0:01:08]} Qe7 {[%emt 0:00:11]} 46. Qh7+ {[%emt 0:00:55]} Kf8 {[%emt 0:00:01]} 47. Be4 {[%emt 0:00:12]} exd5 {[%emt 0:00:26]} 48. Bxd5 {[%emt 0:00:11]} Reb8 {[%emt 0:00:01]} 49. Bxf7 {[%emt 0:02:15]} Qxf7 {[%emt 0:00:16]} 50. Rxf7+ {[%emt 0:00:07]} Nxf7 {[%emt 0:00:02]} 51. h4 {[%emt 0:00:45]} Be5 {[%emt 0:00:18]} 52. Rf2 {[%emt 0:00:33]} Re8 {[%emt 0:00:11]} 53. g5 {[%emt 0:00:19]} Ree7 {[%emt 0:00:09]} 54. g6 {[%emt 0:00:14]} 1-0

[Event "46th OKU-A 2019"]
[Site "Utrecht"]
[Date "2019.06.02"]
[Round "5.9"]
[White "Schouten, Jordy"]
[Black "Okkes, Menno"]
[Result "1/2-1/2"]
[ECO "D00"]
[WhiteElo "2092"]
[BlackElo "2320"]
[Annotator "ChessBase"]
[PlyCount "62"]
[EventDate "2019.05.31"]
[EventType "swiss"]
[EventCountry "NED"]
[SourceTitle "playchess.com"]
[Source "ChessBase"]
[SourceQuality "1"]
[TimeControl "6600+10"]

1. d4 {[%emt 0:18:30]} Nf6 {[%emt 0:00:42]} 2. Bg5 {[%emt 0:00:05]} d5 {[%emt 0:01:10]} 3. Bxf6 {[%emt 0:00:05]} gxf6 {[%emt 0:00:04]} 4. c4 {[%emt 0:00:13]} c5 {[%emt 0:02:10]} 5. cxd5 {[%emt 0:00:12]} Qxd5 {[%emt 0:00:26]} 6. Nf3 {[%emt 0:00:09]} cxd4 {[%emt 0:01:04]} 7. Nc3 {[%emt 0:00:13]} Qa5 {[%emt 0:02:51]} 8. Nxd4 {[%emt 0:00:05]} Bg7 {[%emt 0:14:16]} 9. e3 {[%emt 0:03:48]} O-O {[%emt 0:01:32]} 10. Bd3 {[%emt 0:02:24]} Nc6 {[%emt 0:02:32]} 11. Nb3 {[%emt 0:04:12]} Qg5 {[%emt 0:08:45]} 12. h4 {[%emt 0:19:05]} Qxg2 {[%emt 0:11:04]} 13. Qh5 {[%emt 0:02:57]} f5 {[%emt 0:08:14]} 14. O-O-O {[%emt 0:02:15]} Qg4 {[%emt 0:02:55]} 15. Qg5 {[%emt 0:07:52]} Qxg5 {[%emt 0:02:45]} 16. hxg5 {[%emt 0:00:05]} Be6 {[%emt 0:00:15]} 17. Nc5 {[%emt 0:02:44]} Ne5 {[%emt 0:04:46]} 18. Nxe6 {[%emt 0:06:20]} fxe6 {[%emt 0:00:39]} 19. Bc2 {[%emt 0:00:31]} Rfd8 {[%emt 0:03:58]} 20. f4 {[%emt 0:09:56]} Nc4 {[%emt 0:02:31]} 21. Bb3 {[%emt 0:00:14]} Rxd1+ {[%emt 0:04:48]} 22. Rxd1 {[%emt 0:02:29]} Rc8 {[%emt 0:00:10]} 23. Rd7 {[%emt 0:01:43]} Kf7 {[%emt 0:00:11]} 24. Rxb7 {[%emt 0:07:06]} Na5 {[%emt 0:10:10]} 25. Rb5 {[%emt 0:04:29]} Nxb3+ {[%emt 0:01:19]} 26. Rxb3 {[%emt 0:00:17]} e5 {[%emt 0:00:19]} 27. Kd2 {[%emt 0:01:10]} Rc7 {[%emt 0:01:52]} 28. Rb5 {[%emt 0:03:45]} Kg6 {[%emt 0:01:36]} 29. Ne2 {[%emt 0:04:30]} Rd7+ {[%emt 0:09:47]} 30. Kc2 {[%emt 0:00:48]} e4 {[%emt 0:01:02]} 31. a4 {[%emt 0:01:27]} Rd3 {[%emt 0:04:52]} 1/2-1/2

[Event "46th OKU-A 2019"]
[Site "Utrecht"]
[Date "2019.06.02"]
[Round "5.10"]
[White "Reichardt, Robin"]
[Black "Diepeveen, Vincent"]
[Result "1-0"]
[ECO "D70"]
[WhiteElo "1925"]
[BlackElo "2312"]
[Annotator "ChessBase"]
[PlyCount "51"]
[EventDate "2019.05.31"]
[EventType "swiss"]
[EventCountry "NED"]
[SourceTitle "playchess.com"]
[Source "ChessBase"]
[SourceQuality "1"]
[TimeControl "6600+10"]

1. d4 {[%emt 0:00:00]} d5 {[%emt 0:00:00]} 2. c4 {[%emt 0:00:15]} c6 {[%emt 0:00:02]} 3. Nf3 {[%emt 0:00:06]} Nf6 {[%emt 0:00:04]} 4. Nbd2 {[%emt 0:00:11]} g6 {[%emt 0:04:19]} 5. e3 {[%emt 0:03:08]} Bg7 {[%emt 0:03:24]} 6. Be2 {[%emt 0:06:46]} O-O {[%emt 0:00:18]} 7. O-O {[%emt 0:00:43]} e6 {[%emt 0:10:05]} 8. b3 {[%emt 0:03:01]} b6 {[%emt 0:06:20]} 9. Bb2 {[%emt 0:03:55]} Bb7 {[%emt 0:00:17]} 10. Qc2 {[%emt 0:01:21]} Nbd7 {[%emt 0:01:37]} 11. e4 {[%emt 0:08:07]} dxe4 {[%emt 0:04:47]} 12. Nxe4 {[%emt 0:00:39]} Qc7 {[%emt 0:00:18]} 13. Rfd1 {[%emt 0:04:42]} a5 {[%emt 0:09:33]} 14. Ne5 {[%emt 0:19:21]} Nxe4 {[%emt 0:06:20]} 15. Nxd7 {[%emt 0:03:31]} Qxd7 {[%emt 0:05:27]} 16. Qxe4 {[%emt 0:01:03]} Rfd8 {[%emt 0:00:31]} 17. Qc2 {[%emt 0:08:13]} Qe7 {[%emt 0:01:31]} 18. Bf3 {[%emt 0:03:28]} Rd7 {[%emt 0:02:36]} 19. Rd3 {[%emt 0:03:06]} Rad8 {[%emt 0:00:55]} 20. Rad1 {[%emt 0:00:52]} h5 {[%emt 0:04:15]} 21. h3 {[%emt 0:02:52]} Qh4 {[%emt 0:00:18]} 22. Qe2 {[%emt 0:06:50]} Bxd4 {[%emt 0:01:39]} 23. Rxd4 {[%emt 0:02:29]} Rxd4 {[%emt 0:00:46]} 24. Rxd4 {[%emt 0:00:12]} Rxd4 {[%emt 0:00:32]} 25. Qe5 {[%emt 0:00:47]} c5 {[%emt 0:04:14]} 26. Bxd4 {[%emt 0:02:27]} 1-0

[Event "46th OKU-A 2019"]
[Site "Utrecht"]
[Date "2019.06.02"]
[Round "5.11"]
[White "Kokje, Joris"]
[Black "Sekandar, Kambiz"]
[Result "1/2-1/2"]
[ECO "E06"]
[WhiteElo "2257"]
[BlackElo "2193"]
[Annotator "ChessBase"]
[PlyCount "92"]
[EventDate "2019.05.31"]
[EventType "swiss"]
[EventCountry "NED"]
[SourceTitle "playchess.com"]
[Source "ChessBase"]
[SourceQuality "1"]
[TimeControl "6600+10"]

1. d4 {[%emt 0:00:00]} Nf6 {[%emt 0:03:27]} 2. c4 {[%emt 0:01:23]} e6 {[%emt 0:00:04]} 3. Nf3 {[%emt 0:00:07]} d5 {[%emt 0:00:04]} 4. g3 {[%emt 0:00:11]} Be7 {[%emt 0:00:04]} 5. Bg2 {[%emt 0:00:09]} O-O {[%emt 0:00:05]} 6. Qc2 {[%emt 0:00:59]} dxc4 {[%emt 0:02:18]} 7. Qxc4 {[%emt 0:00:08]} a6 {[%emt 0:01:17]} 8. Bf4 {[%emt 0:06:26]} Nd5 {[%emt 0:08:17]} 9. Nbd2 {[%emt 0:07:11]} b5 {[%emt 0:01:55]} 10. Qc2 {[%emt 0:00:30]} Nd7 {[%emt 0:01:50]} 11. Nb3 {[%emt 0:10:43]} Bb7 {[%emt 0:06:59]} 12. Nc5 {[%emt 0:06:08]} Nxc5 {[%emt 0:05:57]} 13. dxc5 {[%emt 0:02:04]} Qe8 {[%emt 0:06:32]} 14. O-O {[%emt 0:03:32]} Nxf4 {[%emt 0:03:55]} 15. gxf4 {[%emt 0:01:08]} f5 {[%emt 0:00:31]} 16. Ne5 {[%emt 0:15:39]} Bxg2 {[%emt 0:04:38]} 17. Kxg2 {[%emt 0:00:06]} Bf6 {[%emt 0:00:41]} 18. Qc3 {[%emt 0:02:04]} Bxe5 {[%emt 0:01:47]} 19. Qxe5 {[%emt 0:00:31]} Qc6+ {[%emt 0:00:16]} 20. f3 {[%emt 0:01:04]} Rad8 {[%emt 0:01:14]} 21. Rad1 {[%emt 0:16:24]} Rd5 {[%emt 0:05:04]} 22. Rxd5 {[%emt 0:02:11]} exd5 {[%emt 0:00:11]} 23. Rd1 {[%emt 0:00:38]} Qg6+ {[%emt 0:13:19]} 24. Kf2 {[%emt 0:03:38]} c6 {[%emt 0:00:08]} 25. Rg1 {[%emt 0:02:46]} Qf7 {[%emt 0:00:06]} 26. Rg5 {[%emt 0:05:14]} h6 {[%emt 0:01:22]} 27. Rg1 {[%emt 0:02:13]} Rd8 {[%emt 0:00:53]} 28. Qd4 {[%emt 0:01:37]} Re8 {[%emt 0:00:59]} 29. e3 {[%emt 0:00:56]} Re6 {[%emt 0:01:12]} 30. Rg3 {[%emt 0:00:57]} a5 {[%emt 0:00:55]} 31. a3 {[%emt 0:00:49]} a4 {[%emt 0:00:10]} 32. Kg2 {[%emt 0:03:03]} Qe7 {[%emt 0:00:39]} 33. Kf2 {[%emt 0:00:04]} Kh7 {[%emt 0:00:09]} 34. Qc3 {[%emt 0:02:06]} Rf6 {[%emt 0:02:35]} 35. Qd4 {[%emt 0:00:13]} Rf7 {[%emt 0:01:48]} 36. Qc3 {[%emt 0:00:44]} Qh4 {[%emt 0:00:52]} 37. Kg2 {[%emt 0:00:09]} Rd7 {[%emt 0:00:22]} 38. Qe5 {[%emt 0:00:51]} Qh5 {[%emt 0:03:54]} 39. Qe6 {[%emt 0:00:43]} Rc7 {[%emt 0:00:09]} 40. Qd6 {[%emt 0:01:42]} Qf7 {[%emt 0:00:18]} 41. Kf2 {[%emt 0:00:24]} Qd7 {[%emt 0:00:59]} 42. Rg6 {[%emt 0:00:17]} Qf7 {[%emt 0:00:37]} 43. Re6 {[%emt 0:01:43]} Kg8 {[%emt 0:04:01]} 44. Qd8+ {[%emt 0:01:14]} Kh7 {[%emt 0:00:09]} 45. Qd6 {[%emt 0:00:02]} Kg8 {[%emt 0:00:45]} 46. Qd8+ {[%emt 0:00:05]} Kh7 {[%emt 0:00:05]} 1/2-1/2

[Event "46th OKU-A 2019"]
[Site "Utrecht"]
[Date "2019.06.02"]
[Round "5.12"]
[White "Halfhide, Sebastian"]
[Black "Vroombout, Enrico"]
[Result "1-0"]
[ECO "C00"]
[WhiteElo "2252"]
[BlackElo "2137"]
[Annotator "ChessBase"]
[PlyCount "35"]
[EventDate "2019.05.31"]
[EventType "swiss"]
[EventCountry "NED"]
[SourceTitle "playchess.com"]
[Source "ChessBase"]
[SourceQuality "1"]
[TimeControl "6600+10"]

1. e4 {[%emt 0:00:13]} e6 {[%emt 0:00:00]} 2. d3 {[%emt 0:01:05]} d5 {[%emt 0:00:00]} 3. Nd2 {[%emt 0:00:05]} Nf6 {[%emt 0:00:01]} 4. Ngf3 {[%emt 0:00:20]} c5 {[%emt 0:00:14]} 5. g3 {[%emt 0:00:22]} Nc6 {[%emt 0:00:03]} 6. Bg2 {[%emt 0:00:07]} Be7 {[%emt 0:00:10]} 7. O-O {[%emt 0:01:36]} O-O {[%emt 0:02:31]} 8. c3 {[%emt 0:07:12]} a5 {[%emt 0:14:40]} 9. a4 {[%emt 0:20:14]} b6 {[%emt 0:01:51]} 10. Re1 {[%emt 0:03:02]} Ba6 {[%emt 0:00:25]} 11. exd5 {[%emt 0:00:24]} exd5 {[%emt 0:00:26]} 12. Nf1 {[%emt 0:01:59]} Re8 {[%emt 0:13:12]} 13. Nh4 {[%emt 0:07:54]} Qd7 {[%emt 0:15:11]} 14. Bf4 {[%emt 0:14:59]} h6 {[%emt 0:07:25]} 15. Nf3 {[%emt 0:06:43]} Bd6 {[%emt 0:05:35]} 16. Re4 {[%emt 0:02:29]} Re7 17. Rxe7 {[%emt 0:00:11]} Re8 {[%emt 0:00:16]} 18. Rxe8+ {[%emt 0:00:52]} 1-0

[Event "46th OKU-A 2019"]
[Site "Utrecht"]
[Date "2019.06.02"]
[Round "6.1"]
[White "Ten Hertog, Hugo"]
[Black "Burg, Twan"]
[Result "1/2-1/2"]
[ECO "A28"]
[WhiteElo "2480"]
[BlackElo "2519"]
[Annotator "ChessBase"]
[PlyCount "20"]
[EventDate "2019.05.31"]
[EventType "swiss"]
[EventCountry "NED"]
[SourceTitle "playchess.com"]
[Source "ChessBase"]
[SourceQuality "1"]
[TimeControl "6600+10"]

1. c4 {[%emt 0:00:00]} e5 {[%emt 0:00:00]} 2. Nc3 {[%emt 0:00:00]} Nf6 {[%emt 0:00:02]} 3. e3 {[%emt 0:00:08]} Nc6 {[%emt 0:00:48]} 4. Nf3 {[%emt 0:10:24]} Bb4 {[%emt 0:00:42]} 5. Qc2 {[%emt 0:00:04]} Bxc3 {[%emt 0:00:09]} 6. Qxc3 {[%emt 0:01:15]} Qe7 {[%emt 0:00:13]} 7. a3 {[%emt 0:05:21]} d5 {[%emt 0:00:13]} 8. d4 {[%emt 0:05:41]} exd4 {[%emt 0:00:05]} 9. Nxd4 {[%emt 0:00:04]} Nxd4 {[%emt 0:00:05]} 10. Qxd4 {[%emt 0:00:04]} dxc4 {[%emt 0:00:08]} 1/2-1/2

[Event "46th OKU-A 2019"]
[Site "Utrecht"]
[Date "2019.06.02"]
[Round "6.2"]
[White "Arnaudov, G. Petar"]
[Black "Warmerdam, Max"]
[Result "0-1"]
[ECO "D31"]
[WhiteElo "2482"]
[BlackElo "2476"]
[Annotator "ChessBase"]
[PlyCount "112"]
[EventDate "2019.05.31"]
[EventType "swiss"]
[EventCountry "NED"]
[SourceTitle "playchess.com"]
[Source "ChessBase"]
[SourceQuality "1"]
[TimeControl "6600+10"]

1. d4 {[%emt 0:00:00]} d5 {[%emt 0:00:00]} 2. c4 {[%emt 0:00:04]} e6 {[%emt 0:00:13]} 3. Nc3 {[%emt 0:00:37]} Bb4 {[%emt 0:00:31]} 4. cxd5 {[%emt 0:01:12]} exd5 {[%emt 0:00:06]} 5. Bf4 {[%emt 0:00:11]} Ne7 {[%emt 0:01:39]} 6. e3 {[%emt 0:02:55]} O-O {[%emt 0:00:29]} 7. Bd3 {[%emt 0:05:05]} Bf5 {[%emt 0:05:37]} 8. Nge2 {[%emt 0:00:49]} Nd7 {[%emt 0:10:24]} 9. a3 {[%emt 0:00:32]} Bxc3+ {[%emt 0:00:45]} 10. Nxc3 {[%emt 0:00:07]} Bxd3 {[%emt 0:00:36]} 11. Qxd3 {[%emt 0:00:10]} Nb6 {[%emt 0:02:01]} 12. O-O {[%emt 0:03:16]} Qd7 {[%emt 0:01:51]} 13. f3 {[%emt 0:00:57]} Ng6 {[%emt 0:01:40]} 14. Bg3 {[%emt 0:00:23]} f5 {[%emt 0:01:12]} 15. b3 {[%emt 0:03:33]} Rae8 {[%emt 0:05:19]} 16. a4 {[%emt 0:01:06]} c6 {[%emt 0:03:21]} 17. a5 {[%emt 0:02:56]} Nc8 {[%emt 0:00:46]} 18. a6 {[%emt 0:00:08]} b6 {[%emt 0:01:00]} 19. Rfc1 {[%emt 0:07:48]} Nd6 {[%emt 0:00:36]} 20. Na2 {[%emt 0:01:31]} f4 {[%emt 0:19:04]} 21. exf4 {[%emt 0:00:07]} Nxf4 {[%emt 0:00:34]} 22. Bxf4 {[%emt 0:02:20]} Rxf4 {[%emt 0:00:04]} 23. Nb4 {[%emt 0:00:55]} Rc8 {[%emt 0:00:39]} 24. Qd2 {[%emt 0:03:19]} Rf6 {[%emt 0:00:38]} 25. Nd3 {[%emt 0:00:28]} Nf5 {[%emt 0:03:53]} 26. Ne5 {[%emt 0:00:54]} Qd6 {[%emt 0:02:44]} 27. b4 {[%emt 0:00:51]} c5 {[%emt 0:02:13]} 28. bxc5 {[%emt 0:03:06]} bxc5 {[%emt 0:00:28]} 29. Ng4 {[%emt 0:00:20]} Re6 {[%emt 0:01:48]} 30. dxc5 {[%emt 0:00:37]} Rxc5 {[%emt 0:00:11]} 31. Re1 {[%emt 0:04:32]} h6 {[%emt 0:12:09]} 32. Qd3 {[%emt 0:08:58]} d4 {[%emt 0:00:47]} 33. Qb3 {[%emt 0:02:35]} Rd5 {[%emt 0:03:16]} 34. Nf2 {[%emt 0:09:47]} Kh7 {[%emt 0:04:12]} 35. Ne4 {[%emt 0:02:34]} Qd7 {[%emt 0:00:34]} 36. Qd3 {[%emt 0:00:58]} Rg6 {[%emt 0:01:57]} 37. Reb1 {[%emt 0:07:33]} Qc6 {[%emt 0:05:43]} 38. Rb7 {[%emt 0:02:35]} Ne3 {[%emt 0:05:00]} 39. g3 {[%emt 0:02:42]} Rf5 {[%emt 0:00:21]} 40. Qe2 {[%emt 0:01:48]} Ra5 {[%emt 0:07:04]} 41. Rbb1 {[%emt 0:11:34]} Rxa6 {[%emt 0:00:18]} 42. Qd3 {[%emt 0:00:04]} Qc2 {[%emt 0:01:00]} 43. Qxc2 {[%emt 0:00:36]} Nxc2 {[%emt 0:00:01]} 44. Rxa6 {[%emt 0:00:14]} Rxa6 {[%emt 0:00:01]} 45. Rb7 {[%emt 0:00:40]} Ne1 {[%emt 0:01:43]} 46. f4 {[%emt 0:01:22]} Ra2 {[%emt 0:00:10]} 47. f5 {[%emt 0:00:08]} Nf3+ {[%emt 0:01:46]} 48. Kf1 {[%emt 0:00:05]} Nxh2+ {[%emt 0:00:29]} 49. Ke1 {[%emt 0:00:12]} Nf3+ {[%emt 0:00:36]} 50. Kd1 {[%emt 0:00:02]} h5 {[%emt 0:00:22]} 51. f6 {[%emt 0:00:21]} d3 {[%emt 0:00:02]} 52. Kc1 {[%emt 0:03:42]} d2+ {[%emt 0:00:05]} 53. Nxd2 {[%emt 0:00:04]} Rxd2 {[%emt 0:00:02]} 54. Rxa7 {[%emt 0:00:21]} Rd6 {[%emt 0:00:35]} 55. Rxg7+ {[%emt 0:01:31]} Kh6 {[%emt 0:00:01]} 56. Rf7 {[%emt 0:00:29]} Kg6 {[%emt 0:00:21]} 0-1

[Event "46th OKU-A 2019"]
[Site "Utrecht"]
[Date "2019.06.02"]
[Round "6.3"]
[White "Meng, Roger"]
[Black "Beerdsen, Thomas"]
[Result "1-0"]
[ECO "D07"]
[WhiteElo "2443"]
[BlackElo "2488"]
[Annotator "ChessBase"]
[PlyCount "61"]
[EventDate "2019.05.31"]
[EventType "swiss"]
[EventCountry "NED"]
[SourceTitle "playchess.com"]
[Source "ChessBase"]
[SourceQuality "1"]
[TimeControl "6600+10"]

1. d4 {[%emt 0:00:00]} d5 {[%emt 0:00:00]} 2. Nf3 {[%emt 0:00:04]} Nc6 {[%emt 0:00:04]} 3. c4 {[%emt 0:01:19]} Bg4 {[%emt 0:00:04]} 4. cxd5 {[%emt 0:01:39]} Bxf3 {[%emt 0:00:06]} 5. gxf3 {[%emt 0:00:02]} Qxd5 {[%emt 0:00:07]} 6. e3 {[%emt 0:00:03]} e5 {[%emt 0:00:05]} 7. Nc3 {[%emt 0:00:03]} Bb4 {[%emt 0:00:03]} 8. Bd2 {[%emt 0:00:03]} Bxc3 {[%emt 0:00:06]} 9. bxc3 {[%emt 0:00:03]} Qd6 {[%emt 0:00:22]} 10. Bg2 {[%emt 0:01:27]} O-O-O {[%emt 0:02:28]} 11. Qb3 {[%emt 0:02:35]} Nf6 {[%emt 0:03:23]} 12. Rb1 {[%emt 0:02:39]} b6 {[%emt 0:00:33]} 13. O-O {[%emt 0:00:50]} h5 {[%emt 0:05:19]} 14. Bc1 {[%emt 0:07:18]} Rh6 {[%emt 0:05:32]} 15. Bh3+ {[%emt 0:14:57]} Nd7 {[%emt 0:06:15]} 16. Ba3 {[%emt 0:02:24]} Qf6 {[%emt 0:03:24]} 17. Qd5 {[%emt 0:03:48]} Qh4 {[%emt 0:11:26]} 18. Bg2 {[%emt 0:04:14]} f5 {[%emt 0:18:24]} 19. Kh1 {[%emt 0:05:56]} Rg6 {[%emt 0:12:17]} 20. Qf7 {[%emt 0:01:07]} Qg5 {[%emt 0:03:47]} 21. Rg1 {[%emt 0:01:39]} Rf6 {[%emt 0:01:12]} 22. Qc4 {[%emt 0:00:15]} Ncb8 {[%emt 0:11:29]} 23. Be7 {[%emt 0:02:57]} Re8 {[%emt 0:00:33]} 24. Bxf6 {[%emt 0:01:47]} Qxf6 {[%emt 0:00:16]} 25. dxe5 {[%emt 0:01:05]} Nxe5 {[%emt 0:00:30]} 26. Qa4 {[%emt 0:00:22]} Rd8 {[%emt 0:00:51]} 27. Rgd1 {[%emt 0:03:39]} a5 {[%emt 0:04:59]} 28. Rxd8+ {[%emt 0:00:58]} Qxd8 {[%emt 0:00:10]} 29. Rd1 {[%emt 0:00:10]} Qe7 {[%emt 0:00:33]} 30. Qb5 {[%emt 0:01:43]} g6 {[%emt 0:01:22]} 31. h3 {[%emt 0:02:30]} 1-0